Workbook

Sheet S. 1
L1: =DATE(YEAR(B3),MONTH(B3),1) -> 2020-01-01 | M1: K a s s e n b u c h | P1: =DATE(2000,Q1+1,0) -> 2020-01-31 | Q1: 241 | Y1: =RIGHT(CELL("Dateiname",A1),LEN(CELL("Dateiname",A1))-FIND("]",CELL("Dateiname",A1))) -> S. 1 | Z1: =LEFT(Y1,SEARCH(" ",Y1)) -> S. | AA1: =RIGHT(Y1,LEN(Y1)-SEARCH(" ",Y1)) -> 1
A3: Monat: | B3: =P1 -> 2020-01-31 | J3: ="F"&LARGE(IF(F8:F40<>" ",ROW(F8:F40)),1) -> F8 | K3: =YEAR(L3) -> 2020 | L3: =B3 -> 2020-01-31 | M3: Konto Nr. 1600 | N3: Seite 1 | P3: =RIGHT(CELL("Dateiname",A1),LEN(CELL("Dateiname",A1))-FIND("]",CELL("Dateiname",A1))) -> S. 1 | Q3: =MID(P3,SEARCH(" ",P3)+1,3)*1 -> 1
K4: =MONTH(L4) -> 1 | L4: =L3 -> 2020-01-31 | N4: =IF(ISERROR(P3),"",IF(AND(RIGHT(P3,2)<>TEXT(N3," #"),RIGHT(P3,2)<>TEXT(N3,"##"),RIGHT(P3,3)<>TEXT(N3,"###")),"Name Tabellenblatt ändern in ' S. "&N3&" ' ","")) -> 
A5: Einnahmen | B5: Ausgaben | C5: Einnahmen | D5: Bestand | E5: Gegen- | F5: Beleg- | G5: Beleg- | H5: USt.- | I5: BU | J5: Gegenkonto | K5: Gegenkonto | L5: Konto | M5: Kontierung | N5: Text | O5: Skonto | P5: Festschreibung
A6: € | B6: € | C6: Ausgaben | E6: konto | F6: Nr. | G6: Datum | H6: Satz | J6: ASCII | K6: ASCII
G7: =DAY(L1) -> 1
C8: =A8-B8 -> 0.00 | D8: =D6+C8 -> 0.00 | E8: 80 6820 | F8: 1 | L8: =$M$3 -> 1600 | P8: 0
C9: =A9-B9 -> 0.00 | D9: =IF(ROUND(C9,2)=0,"",D8+C9) ->  | F9: =IF(A9+B9=0," ",F8+1) ->  | L9: 1600 | P9: 0
C10: 0.00 | D10: =IF(ROUND(C10,2)=0,"",D9+C10) ->  | L10: 1600 | P10: 0
C11: 0.00 | L11: 1600 | P11: 0
C12: 0.00 | L12: 1600 | P12: 0
C13: 0.00 | L13: 1600 | P13: 0
C14: 0.00 | L14: 1600 | P14: 0
C15: 0.00 | L15: 1600 | P15: 0
C16: 0.00 | L16: 1600 | P16: 0
C17: 0.00 | L17: 1600 | P17: 0
C18: 0.00 | L18: 1600 | P18: 0
C19: 0.00 | L19: 1600 | P19: 0
C20: 0.00 | L20: 1600 | P20: 0
C21: 0.00 | L21: 1600 | P21: 0
C22: 0.00 | L22: 1600 | P22: 0
C23: 0.00 | L23: 1600 | P23: 0
C24: 0.00 | L24: 1600 | P24: 0
C25: 0.00 | L25: 1600 | P25: 0
C26: 0.00 | L26: 1600 | P26: 0
C27: 0.00 | L27: 1600 | P27: 0
C28: 0.00 | L28: 1600 | P28: 0
C29: 0.00 | L29: 1600 | P29: 0
C30: 0.00 | L30: 1600 | P30: 0
C31: 0.00 | L31: 1600 | P31: 0
C32: 0.00 | L32: 1600 | P32: 0
C33: 0.00 | L33: 1600 | P33: 0
C34: 0.00 | L34: 1600 | P34: 0
C35: 0.00 | L35: 1600 | P35: 0
C36: 0.00 | L36: 1600 | P36: 0
C37: 0.00 | L37: 1600 | P37: 0
C38: 0.00 | L38: 1600 | P38: 0
C39: 0.00 | L39: 1600 | P39: 0
C40: 0.00 | L40: 1600 | P40: 0
A41: =SUM(A8:A40) -> 0.00 | B41: =SUM(B8:B40) -> 0.00 | D41: Summen | M41: Unterschrift:
A42: =D6 -> 0.00 | B42: =INDIRECT("D"&COUNT(D8:D40)+7) -> 0.00 | D42: Bestand Anfang / Ende | K42: =MIN(D8:D42) -> 0.00 | M42: geprüft: | N42: =IF(ROUND(A43-B43,2)<>0,"Kassendifferenz !!!","") -> 
A43: =SUM(A41:A42) -> 0.00 | B43: =SUM(B41:B42) -> 0.00 | D43: Kontrollsummen | K43: =MIN('S. 1:S. '!K42) -> 0.00 | M43: gebucht:
A44: =IF(ROUND(A43-B43,2)<>0,"Kassendifferenz !!!","") -> 

Sheet S. 2
A1: =INDIRECT("'S. "&N3-1&"'!A1") -> 0 | L1: =DATE(YEAR(B3),MONTH(B3),1) -> 2020-02-01 | M1: K a s s e n b u c h | P1: =INDIRECT("'S. "&N3-1&"'!B3") -> 2020-01-31 | Q1: 2 | Y1: =RIGHT(CELL("Dateiname",A1),LEN(CELL("Dateiname",A1))-FIND("]",CELL("Dateiname",A1))) -> S. 2 | Z1: =LEFT(Y1,SEARCH(" ",Y1)) -> S. | AA1: =RIGHT(Y1,LEN(Y1)-SEARCH(" ",Y1)) -> 2
A3: Monat: | B3: =DATE(YEAR(P1),MONTH(P1)+Q1,0) -> 2020-02-29 | J3: ="F"&LARGE(IF(F8:F40<>" ",ROW(F8:F40)),1) -> F8 | K3: =YEAR(L3) -> 2020 | L3: =B3 -> 2020-02-29 | M3: =INDIRECT("'S. "&N3-1&"'!M3") -> Konto Nr. 1600 | N3: =IF(ISERROR(P3),1,IF(RIGHT(P3,1)=")",LEFT(RIGHT(P3,7),3)+1,Q3)) -> Seite 2 | P3: =RIGHT(CELL("Dateiname",A1),LEN(CELL("Dateiname",A1))-FIND("]",CELL("Dateiname",A1))) -> S. 2 | Q3: =MID(P3,SEARCH(" ",P3)+1,3)*1 -> 2
K4: =MONTH(L4) -> 2 | L4: =L3 -> 2020-02-29 | N4: =IF(ISERROR(P3),"",IF(AND(RIGHT(P3,2)<>TEXT(N3," #"),RIGHT(P3,2)<>TEXT(N3,"##"),RIGHT(P3,3)<>TEXT(N3,"###")),"Name Tabellenblatt ändern in ' S. "&N3&" ' ","")) -> 
A5: Einnahmen | B5: Ausgaben | C5: Einnahmen | D5: Bestand | E5: Gegen- | F5: Beleg- | G5: Beleg- | H5: USt.- | I5: BU | J5: Gegenkonto | K5: Gegenkonto | L5: Konto | M5: Kontierung | N5: Text | O5: Skonto | P5: Festschreibung
A6: € | B6: € | C6: Ausgaben | D6: =INDIRECT("'S. "&N3-1&"'!B42") -> 0.00 | E6: konto | F6: Nr. | G6: Datum | H6: Satz | J6: ASCII | K6: ASCII
G7: =IF(MONTH(INDIRECT("'S. "&N3-1&"'!B3"))=MONTH(B3),MAX(INDIRECT("'S. "&N3-1&"'!G7:G42")),DAY(L1)) -> 1
C8: =A8-B8 -> 0.00 | D8: =D6+C8 -> 0.00 | F8: =IF(INDIRECT("'S. "&N3-1&"'!A43")=0,1,IF(ROUND(A41+B41,2)=0,INDIRECT("'S. "&N3-1&"'!"&INDIRECT("'S. "&N3-1&"'!J3")),INDIRECT("'S. "&N3-1&"'!"&INDIRECT("'S. "&N3-1&"'!J3"))+1)) -> 1 | L8: =$M$3 -> 1600 | P8: 0
C9: =A9-B9 -> 0.00 | D9: =IF(ROUND(C9,2)=0,"",D8+C9) ->  | F9: =IF(A9+B9=0," ",F8+1) ->  | L9: 1600 | P9: 0
C10: 0.00 | D10: =IF(ROUND(C10,2)=0,"",D9+C10) ->  | L10: 1600 | P10: 0
C11: 0.00 | L11: 1600 | P11: 0
C12: 0.00 | L12: 1600 | P12: 0
C13: 0.00 | L13: 1600 | P13: 0
C14: 0.00 | L14: 1600 | P14: 0
C15: 0.00 | L15: 1600 | P15: 0
C16: 0.00 | L16: 1600 | P16: 0
C17: 0.00 | L17: 1600 | P17: 0
C18: 0.00 | L18: 1600 | P18: 0
C19: 0.00 | L19: 1600 | P19: 0
C20: 0.00 | L20: 1600 | P20: 0
C21: 0.00 | L21: 1600 | P21: 0
C22: 0.00 | L22: 1600 | P22: 0
C23: 0.00 | L23: 1600 | P23: 0
C24: 0.00 | L24: 1600 | P24: 0
C25: 0.00 | L25: 1600 | P25: 0
C26: 0.00 | L26: 1600 | P26: 0
C27: 0.00 | L27: 1600 | P27: 0
C28: 0.00 | L28: 1600 | P28: 0
C29: 0.00 | L29: 1600 | P29: 0
C30: 0.00 | L30: 1600 | P30: 0
C31: 0.00 | L31: 1600 | P31: 0
C32: 0.00 | L32: 1600 | P32: 0
C33: 0.00 | L33: 1600 | P33: 0
C34: 0.00 | L34: 1600 | P34: 0
C35: 0.00 | L35: 1600 | P35: 0
C36: 0.00 | L36: 1600 | P36: 0
C37: 0.00 | L37: 1600 | P37: 0
C38: 0.00 | L38: 1600 | P38: 0
C39: 0.00 | L39: 1600 | P39: 0
C40: 0.00 | L40: 1600 | P40: 0
A41: =SUM(A8:A40) -> 0.00 | B41: =SUM(B8:B40) -> 0.00 | D41: Summen | M41: Unterschrift:
A42: =D6 -> 0.00 | B42: =INDIRECT("D"&COUNT(D8:D40)+7) -> 0.00 | D42: Bestand Anfang / Ende | K42: =MIN(D8:D42) -> 0.00 | M42: geprüft: | N42: =IF(ROUND(A43-B43,2)<>0,"Kassendifferenz !!!","") -> 
A43: =SUM(A41:A42) -> 0.00 | B43: =SUM(B41:B42) -> 0.00 | D43: Kontrollsummen | K43: =MIN('S. 1:S. '!K42) -> 0.00 | M43: gebucht:
A44: =IF(ROUND(A43-B43,2)<>0,"Kassendifferenz !!!","") -> 

Sheet S. 3
A1: =INDIRECT("'S. "&N3-1&"'!A1") -> 0 | L1: =DATE(YEAR(B3),MONTH(B3),1) -> 2020-03-01 | M1: K a s s e n b u c h | P1: =INDIRECT("'S. "&N3-1&"'!B3") -> 2020-02-29 | Q1: 2 | Y1: =RIGHT(CELL("Dateiname",A1),LEN(CELL("Dateiname",A1))-FIND("]",CELL("Dateiname",A1))) -> S. 3 | Z1: =LEFT(Y1,SEARCH(" ",Y1)) -> S. | AA1: =RIGHT(Y1,LEN(Y1)-SEARCH(" ",Y1)) -> 3
A3: Monat: | B3: =DATE(YEAR(P1),MONTH(P1)+Q1,0) -> 2020-03-31 | J3: ="F"&LARGE(IF(F8:F40<>" ",ROW(F8:F40)),1) -> F8 | K3: =YEAR(L3) -> 2020 | L3: =B3 -> 2020-03-31 | M3: =INDIRECT("'S. "&N3-1&"'!M3") -> Konto Nr. 1600 | N3: =IF(ISERROR(P3),1,IF(RIGHT(P3,1)=")",LEFT(RIGHT(P3,7),3)+1,Q3)) -> Seite 3 | P3: =RIGHT(CELL("Dateiname",A1),LEN(CELL("Dateiname",A1))-FIND("]",CELL("Dateiname",A1))) -> S. 3 | Q3: =MID(P3,SEARCH(" ",P3)+1,3)*1 -> 3
K4: =MONTH(L4) -> 3 | L4: =L3 -> 2020-03-31 | N4: =IF(ISERROR(P3),"",IF(AND(RIGHT(P3,2)<>TEXT(N3," #"),RIGHT(P3,2)<>TEXT(N3,"##"),RIGHT(P3,3)<>TEXT(N3,"###")),"Name Tabellenblatt ändern in ' S. "&N3&" ' ","")) -> 
A5: Einnahmen | B5: Ausgaben | C5: Einnahmen | D5: Bestand | E5: Gegen- | F5: Beleg- | G5: Beleg- | H5: USt.- | I5: BU | J5: Gegenkonto | K5: Gegenkonto | L5: Konto | M5: Kontierung | N5: Text | O5: Skonto | P5: Festschreibung
A6: € | B6: € | C6: Ausgaben | D6: =INDIRECT("'S. "&N3-1&"'!B42") -> 0.00 | E6: konto | F6: Nr. | G6: Datum | H6: Satz | J6: ASCII | K6: ASCII
G7: =IF(MONTH(INDIRECT("'S. "&N3-1&"'!B3"))=MONTH(B3),MAX(INDIRECT("'S. "&N3-1&"'!G7:G42")),DAY(L1)) -> 1
C8: =A8-B8 -> 0.00 | D8: =D6+C8 -> 0.00 | F8: =IF(INDIRECT("'S. "&N3-1&"'!A43")=0,1,IF(ROUND(A41+B41,2)=0,INDIRECT("'S. "&N3-1&"'!"&INDIRECT("'S. "&N3-1&"'!J3")),INDIRECT("'S. "&N3-1&"'!"&INDIRECT("'S. "&N3-1&"'!J3"))+1)) -> 1 | L8: =$M$3 -> 1600 | P8: 0
C9: =A9-B9 -> 0.00 | D9: =IF(ROUND(C9,2)=0,"",D8+C9) ->  | F9: =IF(A9+B9=0," ",F8+1) ->  | L9: 1600 | P9: 0
C10: 0.00 | D10: =IF(ROUND(C10,2)=0,"",D9+C10) ->  | L10: 1600 | P10: 0
C11: 0.00 | L11: 1600 | P11: 0
C12: 0.00 | L12: 1600 | P12: 0
C13: 0.00 | L13: 1600 | P13: 0
C14: 0.00 | L14: 1600 | P14: 0
C15: 0.00 | L15: 1600 | P15: 0
C16: 0.00 | L16: 1600 | P16: 0
C17: 0.00 | L17: 1600 | P17: 0
C18: 0.00 | L18: 1600 | P18: 0
C19: 0.00 | L19: 1600 | P19: 0
C20: 0.00 | L20: 1600 | P20: 0
C21: 0.00 | L21: 1600 | P21: 0
C22: 0.00 | L22: 1600 | P22: 0
C23: 0.00 | L23: 1600 | P23: 0
C24: 0.00 | L24: 1600 | P24: 0
C25: 0.00 | L25: 1600 | P25: 0
C26: 0.00 | L26: 1600 | P26: 0
C27: 0.00 | L27: 1600 | P27: 0
C28: 0.00 | L28: 1600 | P28: 0
C29: 0.00 | L29: 1600 | P29: 0
C30: 0.00 | L30: 1600 | P30: 0
C31: 0.00 | L31: 1600 | P31: 0
C32: 0.00 | L32: 1600 | P32: 0
C33: 0.00 | L33: 1600 | P33: 0
C34: 0.00 | L34: 1600 | P34: 0
C35: 0.00 | L35: 1600 | P35: 0
C36: 0.00 | L36: 1600 | P36: 0
C37: 0.00 | L37: 1600 | P37: 0
C38: 0.00 | L38: 1600 | P38: 0
C39: 0.00 | L39: 1600 | P39: 0
C40: 0.00 | L40: 1600 | P40: 0
A41: =SUM(A8:A40) -> 0.00 | B41: =SUM(B8:B40) -> 0.00 | D41: Summen | M41: Unterschrift:
A42: =D6 -> 0.00 | B42: =INDIRECT("D"&COUNT(D8:D40)+7) -> 0.00 | D42: Bestand Anfang / Ende | K42: =MIN(D8:D42) -> 0.00 | M42: geprüft: | N42: =IF(ROUND(A43-B43,2)<>0,"Kassendifferenz !!!","") -> 
A43: =SUM(A41:A42) -> 0.00 | B43: =SUM(B41:B42) -> 0.00 | D43: Kontrollsummen | K43: =MIN('S. 1:S. '!K42) -> 0.00 | M43: gebucht:
A44: =IF(ROUND(A43-B43,2)<>0,"Kassendifferenz !!!","") -> 

Sheet S. 4
A1: =INDIRECT("'S. "&N3-1&"'!A1") -> 0 | L1: =DATE(YEAR(B3),MONTH(B3),1) -> 2020-04-01 | M1: K a s s e n b u c h | P1: =INDIRECT("'S. "&N3-1&"'!B3") -> 2020-03-31 | Q1: 2 | Y1: =RIGHT(CELL("Dateiname",A1),LEN(CELL("Dateiname",A1))-FIND("]",CELL("Dateiname",A1))) -> S. 4 | Z1: =LEFT(Y1,SEARCH(" ",Y1)) -> S. | AA1: =RIGHT(Y1,LEN(Y1)-SEARCH(" ",Y1)) -> 4
A3: Monat: | B3: =DATE(YEAR(P1),MONTH(P1)+Q1,0) -> 2020-04-30 | J3: ="F"&LARGE(IF(F8:F40<>" ",ROW(F8:F40)),1) -> F8 | K3: =YEAR(L3) -> 2020 | L3: =B3 -> 2020-04-30 | M3: =INDIRECT("'S. "&N3-1&"'!M3") -> Konto Nr. 1600 | N3: =IF(ISERROR(P3),1,IF(RIGHT(P3,1)=")",LEFT(RIGHT(P3,7),3)+1,Q3)) -> Seite 4 | P3: =RIGHT(CELL("Dateiname",A1),LEN(CELL("Dateiname",A1))-FIND("]",CELL("Dateiname",A1))) -> S. 4 | Q3: =MID(P3,SEARCH(" ",P3)+1,3)*1 -> 4
K4: =MONTH(L4) -> 4 | L4: =L3 -> 2020-04-30 | N4: =IF(ISERROR(P3),"",IF(AND(RIGHT(P3,2)<>TEXT(N3," #"),RIGHT(P3,2)<>TEXT(N3,"##"),RIGHT(P3,3)<>TEXT(N3,"###")),"Name Tabellenblatt ändern in ' S. "&N3&" ' ","")) -> 
A5: Einnahmen | B5: Ausgaben | C5: Einnahmen | D5: Bestand | E5: Gegen- | F5: Beleg- | G5: Beleg- | H5: USt.- | I5: BU | J5: Gegenkonto | K5: Gegenkonto | L5: Konto | M5: Kontierung | N5: Text | O5: Skonto | P5: Festschreibung
A6: € | B6: € | C6: Ausgaben | D6: =INDIRECT("'S. "&N3-1&"'!B42") -> 0.00 | E6: konto | F6: Nr. | G6: Datum | H6: Satz | J6: ASCII | K6: ASCII
G7: =IF(MONTH(INDIRECT("'S. "&N3-1&"'!B3"))=MONTH(B3),MAX(INDIRECT("'S. "&N3-1&"'!G7:G42")),DAY(L1)) -> 1
C8: =A8-B8 -> 0.00 | D8: =D6+C8 -> 0.00 | F8: =IF(INDIRECT("'S. "&N3-1&"'!A43")=0,1,IF(ROUND(A41+B41,2)=0,INDIRECT("'S. "&N3-1&"'!"&INDIRECT("'S. "&N3-1&"'!J3")),INDIRECT("'S. "&N3-1&"'!"&INDIRECT("'S. "&N3-1&"'!J3"))+1)) -> 1 | L8: =$M$3 -> 1600 | P8: 0
C9: =A9-B9 -> 0.00 | D9: =IF(ROUND(C9,2)=0,"",D8+C9) ->  | F9: =IF(A9+B9=0," ",F8+1) ->  | L9: 1600 | P9: 0
C10: 0.00 | D10: =IF(ROUND(C10,2)=0,"",D9+C10) ->  | L10: 1600 | P10: 0
C11: 0.00 | L11: 1600 | P11: 0
C12: 0.00 | L12: 1600 | P12: 0
C13: 0.00 | L13: 1600 | P13: 0
C14: 0.00 | L14: 1600 | P14: 0
C15: 0.00 | L15: 1600 | P15: 0
C16: 0.00 | L16: 1600 | P16: 0
C17: 0.00 | L17: 1600 | P17: 0
C18: 0.00 | L18: 1600 | P18: 0
C19: 0.00 | L19: 1600 | P19: 0
C20: 0.00 | L20: 1600 | P20: 0
C21: 0.00 | L21: 1600 | P21: 0
C22: 0.00 | L22: 1600 | P22: 0
C23: 0.00 | L23: 1600 | P23: 0
C24: 0.00 | L24: 1600 | P24: 0
C25: 0.00 | L25: 1600 | P25: 0
C26: 0.00 | L26: 1600 | P26: 0
C27: 0.00 | L27: 1600 | P27: 0
C28: 0.00 | L28: 1600 | P28: 0
C29: 0.00 | L29: 1600 | P29: 0
C30: 0.00 | L30: 1600 | P30: 0
C31: 0.00 | L31: 1600 | P31: 0
C32: 0.00 | L32: 1600 | P32: 0
C33: 0.00 | L33: 1600 | P33: 0
C34: 0.00 | L34: 1600 | P34: 0
C35: 0.00 | L35: 1600 | P35: 0
C36: 0.00 | L36: 1600 | P36: 0
C37: 0.00 | L37: 1600 | P37: 0
C38: 0.00 | L38: 1600 | P38: 0
C39: 0.00 | L39: 1600 | P39: 0
C40: 0.00 | L40: 1600 | P40: 0
A41: =SUM(A8:A40) -> 0.00 | B41: =SUM(B8:B40) -> 0.00 | D41: Summen | M41: Unterschrift:
A42: =D6 -> 0.00 | B42: =INDIRECT("D"&COUNT(D8:D40)+7) -> 0.00 | D42: Bestand Anfang / Ende | K42: =MIN(D8:D42) -> 0.00 | M42: geprüft: | N42: =IF(ROUND(A43-B43,2)<>0,"Kassendifferenz !!!","") -> 
A43: =SUM(A41:A42) -> 0.00 | B43: =SUM(B41:B42) -> 0.00 | D43: Kontrollsummen | K43: =MIN('S. 1:S. '!K42) -> 0.00 | M43: gebucht:
A44: =IF(ROUND(A43-B43,2)<>0,"Kassendifferenz !!!","") -> 

Sheet S. 5
A1: =INDIRECT("'S. "&N3-1&"'!A1") -> 0 | L1: =DATE(YEAR(B3),MONTH(B3),1) -> 2020-05-01 | M1: K a s s e n b u c h | P1: =INDIRECT("'S. "&N3-1&"'!B3") -> 2020-04-30 | Q1: 2 | Y1: =RIGHT(CELL("Dateiname",A1),LEN(CELL("Dateiname",A1))-FIND("]",CELL("Dateiname",A1))) -> S. 5 | Z1: =LEFT(Y1,SEARCH(" ",Y1)) -> S. | AA1: =RIGHT(Y1,LEN(Y1)-SEARCH(" ",Y1)) -> 5
A3: Monat: | B3: =DATE(YEAR(P1),MONTH(P1)+Q1,0) -> 2020-05-31 | J3: ="F"&LARGE(IF(F8:F40<>" ",ROW(F8:F40)),1) -> F8 | K3: =YEAR(L3) -> 2020 | L3: =B3 -> 2020-05-31 | M3: =INDIRECT("'S. "&N3-1&"'!M3") -> Konto Nr. 1600 | N3: =IF(ISERROR(P3),1,IF(RIGHT(P3,1)=")",LEFT(RIGHT(P3,7),3)+1,Q3)) -> Seite 5 | P3: =RIGHT(CELL("Dateiname",A1),LEN(CELL("Dateiname",A1))-FIND("]",CELL("Dateiname",A1))) -> S. 5 | Q3: =MID(P3,SEARCH(" ",P3)+1,3)*1 -> 5
K4: =MONTH(L4) -> 5 | L4: =L3 -> 2020-05-31 | N4: =IF(ISERROR(P3),"",IF(AND(RIGHT(P3,2)<>TEXT(N3," #"),RIGHT(P3,2)<>TEXT(N3,"##"),RIGHT(P3,3)<>TEXT(N3,"###")),"Name Tabellenblatt ändern in ' S. "&N3&" ' ","")) -> 
A5: Einnahmen | B5: Ausgaben | C5: Einnahmen | D5: Bestand | E5: Gegen- | F5: Beleg- | G5: Beleg- | H5: USt.- | I5: BU | J5: Gegenkonto | K5: Gegenkonto | L5: Konto | M5: Kontierung | N5: Text | O5: Skonto | P5: Festschreibung
A6: € | B6: € | C6: Ausgaben | D6: =INDIRECT("'S. "&N3-1&"'!B42") -> 0.00 | E6: konto | F6: Nr. | G6: Datum | H6: Satz | J6: ASCII | K6: ASCII
G7: =IF(MONTH(INDIRECT("'S. "&N3-1&"'!B3"))=MONTH(B3),MAX(INDIRECT("'S. "&N3-1&"'!G7:G42")),DAY(L1)) -> 1
C8: =A8-B8 -> 0.00 | D8: =D6+C8 -> 0.00 | F8: =IF(INDIRECT("'S. "&N3-1&"'!A43")=0,1,IF(ROUND(A41+B41,2)=0,INDIRECT("'S. "&N3-1&"'!"&INDIRECT("'S. "&N3-1&"'!J3")),INDIRECT("'S. "&N3-1&"'!"&INDIRECT("'S. "&N3-1&"'!J3"))+1)) -> 1 | L8: =$M$3 -> 1600 | P8: 0
C9: =A9-B9 -> 0.00 | D9: =IF(ROUND(C9,2)=0,"",D8+C9) ->  | F9: =IF(A9+B9=0," ",F8+1) ->  | L9: 1600 | P9: 0
C10: 0.00 | D10: =IF(ROUND(C10,2)=0,"",D9+C10) ->  | L10: 1600 | P10: 0
C11: 0.00 | L11: 1600 | P11: 0
C12: 0.00 | L12: 1600 | P12: 0
C13: 0.00 | L13: 1600 | P13: 0
C14: 0.00 | L14: 1600 | P14: 0
C15: 0.00 | L15: 1600 | P15: 0
C16: 0.00 | L16: 1600 | P16: 0
C17: 0.00 | L17: 1600 | P17: 0
C18: 0.00 | L18: 1600 | P18: 0
C19: 0.00 | L19: 1600 | P19: 0
C20: 0.00 | L20: 1600 | P20: 0
C21: 0.00 | L21: 1600 | P21: 0
C22: 0.00 | L22: 1600 | P22: 0
C23: 0.00 | L23: 1600 | P23: 0
C24: 0.00 | L24: 1600 | P24: 0
C25: 0.00 | L25: 1600 | P25: 0
C26: 0.00 | L26: 1600 | P26: 0
C27: 0.00 | L27: 1600 | P27: 0
C28: 0.00 | L28: 1600 | P28: 0
C29: 0.00 | L29: 1600 | P29: 0
C30: 0.00 | L30: 1600 | P30: 0
C31: 0.00 | L31: 1600 | P31: 0
C32: 0.00 | L32: 1600 | P32: 0
C33: 0.00 | L33: 1600 | P33: 0
C34: 0.00 | L34: 1600 | P34: 0
C35: 0.00 | L35: 1600 | P35: 0
C36: 0.00 | L36: 1600 | P36: 0
C37: 0.00 | L37: 1600 | P37: 0
C38: 0.00 | L38: 1600 | P38: 0
C39: 0.00 | L39: 1600 | P39: 0
C40: 0.00 | L40: 1600 | P40: 0
A41: =SUM(A8:A40) -> 0.00 | B41: =SUM(B8:B40) -> 0.00 | D41: Summen | M41: Unterschrift:
A42: =D6 -> 0.00 | B42: =INDIRECT("D"&COUNT(D8:D40)+7) -> 0.00 | D42: Bestand Anfang / Ende | K42: =MIN(D8:D42) -> 0.00 | M42: geprüft: | N42: =IF(ROUND(A43-B43,2)<>0,"Kassendifferenz !!!","") -> 
A43: =SUM(A41:A42) -> 0.00 | B43: =SUM(B41:B42) -> 0.00 | D43: Kontrollsummen | K43: =MIN('S. 1:S. '!K42) -> 0.00 | M43: gebucht:
A44: =IF(ROUND(A43-B43,2)<>0,"Kassendifferenz !!!","") -> 

Sheet S. 6
A1: =INDIRECT("'S. "&N3-1&"'!A1") -> 0 | L1: =DATE(YEAR(B3),MONTH(B3),1) -> 2020-06-01 | M1: K a s s e n b u c h | P1: =INDIRECT("'S. "&N3-1&"'!B3") -> 2020-05-31 | Q1: 2 | Y1: =RIGHT(CELL("Dateiname",A1),LEN(CELL("Dateiname",A1))-FIND("]",CELL("Dateiname",A1))) -> S. 6 | Z1: =LEFT(Y1,SEARCH(" ",Y1)) -> S. | AA1: =RIGHT(Y1,LEN(Y1)-SEARCH(" ",Y1)) -> 6
A3: Monat: | B3: =DATE(YEAR(P1),MONTH(P1)+Q1,0) -> 2020-06-30 | J3: ="F"&LARGE(IF(F8:F40<>" ",ROW(F8:F40)),1) -> F8 | K3: =YEAR(L3) -> 2020 | L3: =B3 -> 2020-06-30 | M3: =INDIRECT("'S. "&N3-1&"'!M3") -> Konto Nr. 1600 | N3: =IF(ISERROR(P3),1,IF(RIGHT(P3,1)=")",LEFT(RIGHT(P3,7),3)+1,Q3)) -> Seite 6 | P3: =RIGHT(CELL("Dateiname",A1),LEN(CELL("Dateiname",A1))-FIND("]",CELL("Dateiname",A1))) -> S. 6 | Q3: =MID(P3,SEARCH(" ",P3)+1,3)*1 -> 6
K4: =MONTH(L4) -> 6 | L4: =L3 -> 2020-06-30 | N4: =IF(ISERROR(P3),"",IF(AND(RIGHT(P3,2)<>TEXT(N3," #"),RIGHT(P3,2)<>TEXT(N3,"##"),RIGHT(P3,3)<>TEXT(N3,"###")),"Name Tabellenblatt ändern in ' S. "&N3&" ' ","")) -> 
A5: Einnahmen | B5: Ausgaben | C5: Einnahmen | D5: Bestand | E5: Gegen- | F5: Beleg- | G5: Beleg- | H5: USt.- | I5: BU | J5: Gegenkonto | K5: Gegenkonto | L5: Konto | M5: Kontierung | N5: Text | O5: Skonto | P5: Festschreibung
A6: € | B6: € | C6: Ausgaben | D6: =INDIRECT("'S. "&N3-1&"'!B42") -> 0.00 | E6: konto | F6: Nr. | G6: Datum | H6: Satz | J6: ASCII | K6: ASCII
G7: =IF(MONTH(INDIRECT("'S. "&N3-1&"'!B3"))=MONTH(B3),MAX(INDIRECT("'S. "&N3-1&"'!G7:G42")),DAY(L1)) -> 1
C8: =A8-B8 -> 0.00 | D8: =D6+C8 -> 0.00 | F8: =IF(INDIRECT("'S. "&N3-1&"'!A43")=0,1,IF(ROUND(A41+B41,2)=0,INDIRECT("'S. "&N3-1&"'!"&INDIRECT("'S. "&N3-1&"'!J3")),INDIRECT("'S. "&N3-1&"'!"&INDIRECT("'S. "&N3-1&"'!J3"))+1)) -> 1 | L8: =$M$3 -> 1600 | P8: 0
C9: =A9-B9 -> 0.00 | D9: =IF(ROUND(C9,2)=0,"",D8+C9) ->  | F9: =IF(A9+B9=0," ",F8+1) ->  | L9: 1600 | P9: 0
C10: 0.00 | D10: =IF(ROUND(C10,2)=0,"",D9+C10) ->  | L10: 1600 | P10: 0
C11: 0.00 | L11: 1600 | P11: 0
C12: 0.00 | L12: 1600 | P12: 0
C13: 0.00 | L13: 1600 | P13: 0
C14: 0.00 | L14: 1600 | P14: 0
C15: 0.00 | L15: 1600 | P15: 0
C16: 0.00 | L16: 1600 | P16: 0
C17: 0.00 | L17: 1600 | P17: 0
C18: 0.00 | L18: 1600 | P18: 0
C19: 0.00 | L19: 1600 | P19: 0
C20: 0.00 | L20: 1600 | P20: 0
C21: 0.00 | L21: 1600 | P21: 0
C22: 0.00 | L22: 1600 | P22: 0
C23: 0.00 | L23: 1600 | P23: 0
C24: 0.00 | L24: 1600 | P24: 0
C25: 0.00 | L25: 1600 | P25: 0
C26: 0.00 | L26: 1600 | P26: 0
C27: 0.00 | L27: 1600 | P27: 0
C28: 0.00 | L28: 1600 | P28: 0
C29: 0.00 | L29: 1600 | P29: 0
C30: 0.00 | L30: 1600 | P30: 0
C31: 0.00 | L31: 1600 | P31: 0
C32: 0.00 | L32: 1600 | P32: 0
C33: 0.00 | L33: 1600 | P33: 0
C34: 0.00 | L34: 1600 | P34: 0
C35: 0.00 | L35: 1600 | P35: 0
C36: 0.00 | L36: 1600 | P36: 0
C37: 0.00 | L37: 1600 | P37: 0
C38: 0.00 | L38: 1600 | P38: 0
C39: 0.00 | L39: 1600 | P39: 0
C40: 0.00 | L40: 1600 | P40: 0
A41: =SUM(A8:A40) -> 0.00 | B41: =SUM(B8:B40) -> 0.00 | D41: Summen | M41: Unterschrift:
A42: =D6 -> 0.00 | B42: =INDIRECT("D"&COUNT(D8:D40)+7) -> 0.00 | D42: Bestand Anfang / Ende | K42: =MIN(D8:D42) -> 0.00 | M42: geprüft: | N42: =IF(ROUND(A43-B43,2)<>0,"Kassendifferenz !!!","") -> 
A43: =SUM(A41:A42) -> 0.00 | B43: =SUM(B41:B42) -> 0.00 | D43: Kontrollsummen | K43: =MIN('S. 1:S. '!K42) -> 0.00 | M43: gebucht:
A44: =IF(ROUND(A43-B43,2)<>0,"Kassendifferenz !!!","") -> 

Sheet S. 7
A1: =INDIRECT("'S. "&N3-1&"'!A1") -> 0 | L1: =DATE(YEAR(B3),MONTH(B3),1) -> 2020-07-01 | M1: K a s s e n b u c h | P1: =INDIRECT("'S. "&N3-1&"'!B3") -> 2020-06-30 | Q1: 2 | Y1: =RIGHT(CELL("Dateiname",A1),LEN(CELL("Dateiname",A1))-FIND("]",CELL("Dateiname",A1))) -> S. 7 | Z1: =LEFT(Y1,SEARCH(" ",Y1)) -> S. | AA1: =RIGHT(Y1,LEN(Y1)-SEARCH(" ",Y1)) -> 7
A3: Monat: | B3: =DATE(YEAR(P1),MONTH(P1)+Q1,0) -> 2020-07-31 | J3: ="F"&LARGE(IF(F8:F40<>" ",ROW(F8:F40)),1) -> F8 | K3: =YEAR(L3) -> 2020 | L3: =B3 -> 2020-07-31 | M3: =INDIRECT("'S. "&N3-1&"'!M3") -> Konto Nr. 1600 | N3: =IF(ISERROR(P3),1,IF(RIGHT(P3,1)=")",LEFT(RIGHT(P3,7),3)+1,Q3)) -> Seite 7 | P3: =RIGHT(CELL("Dateiname",A1),LEN(CELL("Dateiname",A1))-FIND("]",CELL("Dateiname",A1))) -> S. 7 | Q3: =MID(P3,SEARCH(" ",P3)+1,3)*1 -> 7
K4: =MONTH(L4) -> 7 | L4: =L3 -> 2020-07-31 | N4: =IF(ISERROR(P3),"",IF(AND(RIGHT(P3,2)<>TEXT(N3," #"),RIGHT(P3,2)<>TEXT(N3,"##"),RIGHT(P3,3)<>TEXT(N3,"###")),"Name Tabellenblatt ändern in ' S. "&N3&" ' ","")) -> 
A5: Einnahmen | B5: Ausgaben | C5: Einnahmen | D5: Bestand | E5: Gegen- | F5: Beleg- | G5: Beleg- | H5: USt.- | I5: BU | J5: Gegenkonto | K5: Gegenkonto | L5: Konto | M5: Kontierung | N5: Text | O5: Skonto | P5: Festschreibung
A6: € | B6: € | C6: Ausgaben | D6: =INDIRECT("'S. "&N3-1&"'!B42") -> 0.00 | E6: konto | F6: Nr. | G6: Datum | H6: Satz | J6: ASCII | K6: ASCII
G7: =IF(MONTH(INDIRECT("'S. "&N3-1&"'!B3"))=MONTH(B3),MAX(INDIRECT("'S. "&N3-1&"'!G7:G42")),DAY(L1)) -> 1
C8: =A8-B8 -> 0.00 | D8: =D6+C8 -> 0.00 | F8: =IF(INDIRECT("'S. "&N3-1&"'!A43")=0,1,IF(ROUND(A41+B41,2)=0,INDIRECT("'S. "&N3-1&"'!"&INDIRECT("'S. "&N3-1&"'!J3")),INDIRECT("'S. "&N3-1&"'!"&INDIRECT("'S. "&N3-1&"'!J3"))+1)) -> 1 | L8: =$M$3 -> 1600 | P8: 0
C9: =A9-B9 -> 0.00 | D9: =IF(ROUND(C9,2)=0,"",D8+C9) ->  | F9: =IF(A9+B9=0," ",F8+1) ->  | L9: 1600 | P9: 0
C10: 0.00 | D10: =IF(ROUND(C10,2)=0,"",D9+C10) ->  | L10: 1600 | P10: 0
C11: 0.00 | L11: 1600 | P11: 0
C12: 0.00 | L12: 1600 | P12: 0
C13: 0.00 | L13: 1600 | P13: 0
C14: 0.00 | L14: 1600 | P14: 0
C15: 0.00 | L15: 1600 | P15: 0
C16: 0.00 | L16: 1600 | P16: 0
C17: 0.00 | L17: 1600 | P17: 0
C18: 0.00 | L18: 1600 | P18: 0
C19: 0.00 | L19: 1600 | P19: 0
C20: 0.00 | L20: 1600 | P20: 0
C21: 0.00 | L21: 1600 | P21: 0
C22: 0.00 | L22: 1600 | P22: 0
C23: 0.00 | L23: 1600 | P23: 0
C24: 0.00 | L24: 1600 | P24: 0
C25: 0.00 | L25: 1600 | P25: 0
C26: 0.00 | L26: 1600 | P26: 0
C27: 0.00 | L27: 1600 | P27: 0
C28: 0.00 | L28: 1600 | P28: 0
C29: 0.00 | L29: 1600 | P29: 0
C30: 0.00 | L30: 1600 | P30: 0
C31: 0.00 | L31: 1600 | P31: 0
C32: 0.00 | L32: 1600 | P32: 0
C33: 0.00 | L33: 1600 | P33: 0
C34: 0.00 | L34: 1600 | P34: 0
C35: 0.00 | L35: 1600 | P35: 0
C36: 0.00 | L36: 1600 | P36: 0
C37: 0.00 | L37: 1600 | P37: 0
C38: 0.00 | L38: 1600 | P38: 0
C39: 0.00 | L39: 1600 | P39: 0
C40: 0.00 | L40: 1600 | P40: 0
A41: =SUM(A8:A40) -> 0.00 | B41: =SUM(B8:B40) -> 0.00 | D41: Summen | M41: Unterschrift:
A42: =D6 -> 0.00 | B42: =INDIRECT("D"&COUNT(D8:D40)+7) -> 0.00 | D42: Bestand Anfang / Ende | K42: =MIN(D8:D42) -> 0.00 | M42: geprüft: | N42: =IF(ROUND(A43-B43,2)<>0,"Kassendifferenz !!!","") -> 
A43: =SUM(A41:A42) -> 0.00 | B43: =SUM(B41:B42) -> 0.00 | D43: Kontrollsummen | K43: =MIN('S. 1:S. '!K42) -> 0.00 | M43: gebucht:
A44: =IF(ROUND(A43-B43,2)<>0,"Kassendifferenz !!!","") -> 

Sheet S. 8
A1: =INDIRECT("'S. "&N3-1&"'!A1") -> 0 | L1: =DATE(YEAR(B3),MONTH(B3),1) -> 2020-08-01 | M1: K a s s e n b u c h | P1: =INDIRECT("'S. "&N3-1&"'!B3") -> 2020-07-31 | Q1: 2 | Y1: =RIGHT(CELL("Dateiname",A1),LEN(CELL("Dateiname",A1))-FIND("]",CELL("Dateiname",A1))) -> S. 8 | Z1: =LEFT(Y1,SEARCH(" ",Y1)) -> S. | AA1: =RIGHT(Y1,LEN(Y1)-SEARCH(" ",Y1)) -> 8
A3: Monat: | B3: =DATE(YEAR(P1),MONTH(P1)+Q1,0) -> 2020-08-31 | J3: ="F"&LARGE(IF(F8:F40<>" ",ROW(F8:F40)),1) -> F8 | K3: =YEAR(L3) -> 2020 | L3: =B3 -> 2020-08-31 | M3: =INDIRECT("'S. "&N3-1&"'!M3") -> Konto Nr. 1600 | N3: =IF(ISERROR(P3),1,IF(RIGHT(P3,1)=")",LEFT(RIGHT(P3,7),3)+1,Q3)) -> Seite 8 | P3: =RIGHT(CELL("Dateiname",A1),LEN(CELL("Dateiname",A1))-FIND("]",CELL("Dateiname",A1))) -> S. 8 | Q3: =MID(P3,SEARCH(" ",P3)+1,3)*1 -> 8
K4: =MONTH(L4) -> 8 | L4: =L3 -> 2020-08-31 | N4: =IF(ISERROR(P3),"",IF(AND(RIGHT(P3,2)<>TEXT(N3," #"),RIGHT(P3,2)<>TEXT(N3,"##"),RIGHT(P3,3)<>TEXT(N3,"###")),"Name Tabellenblatt ändern in ' S. "&N3&" ' ","")) -> 
A5: Einnahmen | B5: Ausgaben | C5: Einnahmen | D5: Bestand | E5: Gegen- | F5: Beleg- | G5: Beleg- | H5: USt.- | I5: BU | J5: Gegenkonto | K5: Gegenkonto | L5: Konto | M5: Kontierung | N5: Text | O5: Skonto | P5: Festschreibung
A6: € | B6: € | C6: Ausgaben | D6: =INDIRECT("'S. "&N3-1&"'!B42") -> 0.00 | E6: konto | F6: Nr. | G6: Datum | H6: Satz | J6: ASCII | K6: ASCII
G7: =IF(MONTH(INDIRECT("'S. "&N3-1&"'!B3"))=MONTH(B3),MAX(INDIRECT("'S. "&N3-1&"'!G7:G42")),DAY(L1)) -> 1
C8: =A8-B8 -> 0.00 | D8: =D6+C8 -> 0.00 | F8: =IF(INDIRECT("'S. "&N3-1&"'!A43")=0,1,IF(ROUND(A41+B41,2)=0,INDIRECT("'S. "&N3-1&"'!"&INDIRECT("'S. "&N3-1&"'!J3")),INDIRECT("'S. "&N3-1&"'!"&INDIRECT("'S. "&N3-1&"'!J3"))+1)) -> 1 | L8: =$M$3 -> 1600 | P8: 0
C9: =A9-B9 -> 0.00 | D9: =IF(ROUND(C9,2)=0,"",D8+C9) ->  | F9: =IF(A9+B9=0," ",F8+1) ->  | L9: 1600 | P9: 0
C10: 0.00 | D10: =IF(ROUND(C10,2)=0,"",D9+C10) ->  | L10: 1600 | P10: 0
C11: 0.00 | L11: 1600 | P11: 0
C12: 0.00 | L12: 1600 | P12: 0
C13: 0.00 | L13: 1600 | P13: 0
C14: 0.00 | L14: 1600 | P14: 0
C15: 0.00 | L15: 1600 | P15: 0
C16: 0.00 | L16: 1600 | P16: 0
C17: 0.00 | L17: 1600 | P17: 0
C18: 0.00 | L18: 1600 | P18: 0
C19: 0.00 | L19: 1600 | P19: 0
C20: 0.00 | L20: 1600 | P20: 0
C21: 0.00 | L21: 1600 | P21: 0
C22: 0.00 | L22: 1600 | P22: 0
C23: 0.00 | L23: 1600 | P23: 0
C24: 0.00 | L24: 1600 | P24: 0
C25: 0.00 | L25: 1600 | P25: 0
C26: 0.00 | L26: 1600 | P26: 0
C27: 0.00 | L27: 1600 | P27: 0
C28: 0.00 | L28: 1600 | P28: 0
C29: 0.00 | L29: 1600 | P29: 0
C30: 0.00 | L30: 1600 | P30: 0
C31: 0.00 | L31: 1600 | P31: 0
C32: 0.00 | L32: 1600 | P32: 0
C33: 0.00 | L33: 1600 | P33: 0
C34: 0.00 | L34: 1600 | P34: 0
C35: 0.00 | L35: 1600 | P35: 0
C36: 0.00 | L36: 1600 | P36: 0
C37: 0.00 | L37: 1600 | P37: 0
C38: 0.00 | L38: 1600 | P38: 0
C39: 0.00 | L39: 1600 | P39: 0
C40: 0.00 | L40: 1600 | P40: 0
A41: =SUM(A8:A40) -> 0.00 | B41: =SUM(B8:B40) -> 0.00 | D41: Summen | M41: Unterschrift:
A42: =D6 -> 0.00 | B42: =INDIRECT("D"&COUNT(D8:D40)+7) -> 0.00 | D42: Bestand Anfang / Ende | K42: =MIN(D8:D42) -> 0.00 | M42: geprüft: | N42: =IF(ROUND(A43-B43,2)<>0,"Kassendifferenz !!!","") -> 
A43: =SUM(A41:A42) -> 0.00 | B43: =SUM(B41:B42) -> 0.00 | D43: Kontrollsummen | K43: =MIN('S. 1:S. '!K42) -> 0.00 | M43: gebucht:
A44: =IF(ROUND(A43-B43,2)<>0,"Kassendifferenz !!!","") -> 

Sheet S. 9
A1: =INDIRECT("'S. "&N3-1&"'!A1") -> 0 | L1: =DATE(YEAR(B3),MONTH(B3),1) -> 2020-09-01 | M1: K a s s e n b u c h | P1: =INDIRECT("'S. "&N3-1&"'!B3") -> 2020-08-31 | Q1: 2 | Y1: =RIGHT(CELL("Dateiname",A1),LEN(CELL("Dateiname",A1))-FIND("]",CELL("Dateiname",A1))) -> S. 9 | Z1: =LEFT(Y1,SEARCH(" ",Y1)) -> S. | AA1: =RIGHT(Y1,LEN(Y1)-SEARCH(" ",Y1)) -> 9
A3: Monat: | B3: =DATE(YEAR(P1),MONTH(P1)+Q1,0) -> 2020-09-30 | J3: ="F"&LARGE(IF(F8:F40<>" ",ROW(F8:F40)),1) -> F8 | K3: =YEAR(L3) -> 2020 | L3: =B3 -> 2020-09-30 | M3: =INDIRECT("'S. "&N3-1&"'!M3") -> Konto Nr. 1600 | N3: =IF(ISERROR(P3),1,IF(RIGHT(P3,1)=")",LEFT(RIGHT(P3,7),3)+1,Q3)) -> Seite 9 | P3: =RIGHT(CELL("Dateiname",A1),LEN(CELL("Dateiname",A1))-FIND("]",CELL("Dateiname",A1))) -> S. 9 | Q3: =MID(P3,SEARCH(" ",P3)+1,3)*1 -> 9
K4: =MONTH(L4) -> 9 | L4: =L3 -> 2020-09-30 | N4: =IF(ISERROR(P3),"",IF(AND(RIGHT(P3,2)<>TEXT(N3," #"),RIGHT(P3,2)<>TEXT(N3,"##"),RIGHT(P3,3)<>TEXT(N3,"###")),"Name Tabellenblatt ändern in ' S. "&N3&" ' ","")) -> 
A5: Einnahmen | B5: Ausgaben | C5: Einnahmen | D5: Bestand | E5: Gegen- | F5: Beleg- | G5: Beleg- | H5: USt.- | I5: BU | J5: Gegenkonto | K5: Gegenkonto | L5: Konto | M5: Kontierung | N5: Text | O5: Skonto | P5: Festschreibung
A6: € | B6: € | C6: Ausgaben | D6: =INDIRECT("'S. "&N3-1&"'!B42") -> 0.00 | E6: konto | F6: Nr. | G6: Datum | H6: Satz | J6: ASCII | K6: ASCII
G7: =IF(MONTH(INDIRECT("'S. "&N3-1&"'!B3"))=MONTH(B3),MAX(INDIRECT("'S. "&N3-1&"'!G7:G42")),DAY(L1)) -> 1
C8: =A8-B8 -> 0.00 | D8: =D6+C8 -> 0.00 | F8: =IF(INDIRECT("'S. "&N3-1&"'!A43")=0,1,IF(ROUND(A41+B41,2)=0,INDIRECT("'S. "&N3-1&"'!"&INDIRECT("'S. "&N3-1&"'!J3")),INDIRECT("'S. "&N3-1&"'!"&INDIRECT("'S. "&N3-1&"'!J3"))+1)) -> 1 | L8: =$M$3 -> 1600 | P8: 0
C9: =A9-B9 -> 0.00 | D9: =IF(ROUND(C9,2)=0,"",D8+C9) ->  | F9: =IF(A9+B9=0," ",F8+1) ->  | L9: 1600 | P9: 0
C10: 0.00 | D10: =IF(ROUND(C10,2)=0,"",D9+C10) ->  | L10: 1600 | P10: 0
C11: 0.00 | L11: 1600 | P11: 0
C12: 0.00 | L12: 1600 | P12: 0
C13: 0.00 | L13: 1600 | P13: 0
C14: 0.00 | L14: 1600 | P14: 0
C15: 0.00 | L15: 1600 | P15: 0
C16: 0.00 | L16: 1600 | P16: 0
C17: 0.00 | L17: 1600 | P17: 0
C18: 0.00 | L18: 1600 | P18: 0
C19: 0.00 | L19: 1600 | P19: 0
C20: 0.00 | L20: 1600 | P20: 0
C21: 0.00 | L21: 1600 | P21: 0
C22: 0.00 | L22: 1600 | P22: 0
C23: 0.00 | L23: 1600 | P23: 0
C24: 0.00 | L24: 1600 | P24: 0
C25: 0.00 | L25: 1600 | P25: 0
C26: 0.00 | L26: 1600 | P26: 0
C27: 0.00 | L27: 1600 | P27: 0
C28: 0.00 | L28: 1600 | P28: 0
C29: 0.00 | L29: 1600 | P29: 0
C30: 0.00 | L30: 1600 | P30: 0
C31: 0.00 | L31: 1600 | P31: 0
C32: 0.00 | L32: 1600 | P32: 0
C33: 0.00 | L33: 1600 | P33: 0
C34: 0.00 | L34: 1600 | P34: 0
C35: 0.00 | L35: 1600 | P35: 0
C36: 0.00 | L36: 1600 | P36: 0
C37: 0.00 | L37: 1600 | P37: 0
C38: 0.00 | L38: 1600 | P38: 0
C39: 0.00 | L39: 1600 | P39: 0
C40: 0.00 | L40: 1600 | P40: 0
A41: =SUM(A8:A40) -> 0.00 | B41: =SUM(B8:B40) -> 0.00 | D41: Summen | M41: Unterschrift:
A42: =D6 -> 0.00 | B42: =INDIRECT("D"&COUNT(D8:D40)+7) -> 0.00 | D42: Bestand Anfang / Ende | K42: =MIN(D8:D42) -> 0.00 | M42: geprüft: | N42: =IF(ROUND(A43-B43,2)<>0,"Kassendifferenz !!!","") -> 
A43: =SUM(A41:A42) -> 0.00 | B43: =SUM(B41:B42) -> 0.00 | D43: Kontrollsummen | K43: =MIN('S. 1:S. '!K42) -> 0.00 | M43: gebucht:
A44: =IF(ROUND(A43-B43,2)<>0,"Kassendifferenz !!!","") -> 

Sheet S. 10
A1: =INDIRECT("'S. "&N3-1&"'!A1") -> 0 | L1: =DATE(YEAR(B3),MONTH(B3),1) -> 2020-10-01 | M1: K a s s e n b u c h | P1: =INDIRECT("'S. "&N3-1&"'!B3") -> 2020-09-30 | Q1: 2 | Y1: =RIGHT(CELL("Dateiname",A1),LEN(CELL("Dateiname",A1))-FIND("]",CELL("Dateiname",A1))) -> S. 10 | Z1: =LEFT(Y1,SEARCH(" ",Y1)) -> S. | AA1: =RIGHT(Y1,LEN(Y1)-SEARCH(" ",Y1)) -> 10
A3: Monat: | B3: =DATE(YEAR(P1),MONTH(P1)+Q1,0) -> 2020-10-31 | J3: ="F"&LARGE(IF(F8:F40<>" ",ROW(F8:F40)),1) -> F8 | K3: =YEAR(L3) -> 2020 | L3: =B3 -> 2020-10-31 | M3: =INDIRECT("'S. "&N3-1&"'!M3") -> Konto Nr. 1600 | N3: =IF(ISERROR(P3),1,IF(RIGHT(P3,1)=")",LEFT(RIGHT(P3,7),3)+1,Q3)) -> Seite 10 | P3: =RIGHT(CELL("Dateiname",A1),LEN(CELL("Dateiname",A1))-FIND("]",CELL("Dateiname",A1))) -> S. 10 | Q3: =MID(P3,SEARCH(" ",P3)+1,3)*1 -> 10
K4: =MONTH(L4) -> 10 | L4: =L3 -> 2020-10-31 | N4: =IF(ISERROR(P3),"",IF(AND(RIGHT(P3,2)<>TEXT(N3," #"),RIGHT(P3,2)<>TEXT(N3,"##"),RIGHT(P3,3)<>TEXT(N3,"###")),"Name Tabellenblatt ändern in ' S. "&N3&" ' ","")) -> 
A5: Einnahmen | B5: Ausgaben | C5: Einnahmen | D5: Bestand | E5: Gegen- | F5: Beleg- | G5: Beleg- | H5: USt.- | I5: BU | J5: Gegenkonto | K5: Gegenkonto | L5: Konto | M5: Kontierung | N5: Text | O5: Skonto | P5: Festschreibung
A6: € | B6: € | C6: Ausgaben | D6: =INDIRECT("'S. "&N3-1&"'!B42") -> 0.00 | E6: konto | F6: Nr. | G6: Datum | H6: Satz | J6: ASCII | K6: ASCII
G7: =IF(MONTH(INDIRECT("'S. "&N3-1&"'!B3"))=MONTH(B3),MAX(INDIRECT("'S. "&N3-1&"'!G7:G42")),DAY(L1)) -> 1
C8: =A8-B8 -> 0.00 | D8: =D6+C8 -> 0.00 | F8: =IF(INDIRECT("'S. "&N3-1&"'!A43")=0,1,IF(ROUND(A41+B41,2)=0,INDIRECT("'S. "&N3-1&"'!"&INDIRECT("'S. "&N3-1&"'!J3")),INDIRECT("'S. "&N3-1&"'!"&INDIRECT("'S. "&N3-1&"'!J3"))+1)) -> 1 | L8: =$M$3 -> 1600 | P8: 0
C9: =A9-B9 -> 0.00 | D9: =IF(ROUND(C9,2)=0,"",D8+C9) ->  | F9: =IF(A9+B9=0," ",F8+1) ->  | L9: 1600 | P9: 0
C10: 0.00 | D10: =IF(ROUND(C10,2)=0,"",D9+C10) ->  | L10: 1600 | P10: 0
C11: 0.00 | L11: 1600 | P11: 0
C12: 0.00 | L12: 1600 | P12: 0
C13: 0.00 | L13: 1600 | P13: 0
C14: 0.00 | L14: 1600 | P14: 0
C15: 0.00 | L15: 1600 | P15: 0
C16: 0.00 | L16: 1600 | P16: 0
C17: 0.00 | L17: 1600 | P17: 0
C18: 0.00 | L18: 1600 | P18: 0
C19: 0.00 | L19: 1600 | P19: 0
C20: 0.00 | L20: 1600 | P20: 0
C21: 0.00 | L21: 1600 | P21: 0
C22: 0.00 | L22: 1600 | P22: 0
C23: 0.00 | L23: 1600 | P23: 0
C24: 0.00 | L24: 1600 | P24: 0
C25: 0.00 | L25: 1600 | P25: 0
C26: 0.00 | L26: 1600 | P26: 0
C27: 0.00 | L27: 1600 | P27: 0
C28: 0.00 | L28: 1600 | P28: 0
C29: 0.00 | L29: 1600 | P29: 0
C30: 0.00 | L30: 1600 | P30: 0
C31: 0.00 | L31: 1600 | P31: 0
C32: 0.00 | L32: 1600 | P32: 0
C33: 0.00 | L33: 1600 | P33: 0
C34: 0.00 | L34: 1600 | P34: 0
C35: 0.00 | L35: 1600 | P35: 0
C36: 0.00 | L36: 1600 | P36: 0
C37: 0.00 | L37: 1600 | P37: 0
C38: 0.00 | L38: 1600 | P38: 0
C39: 0.00 | L39: 1600 | P39: 0
C40: 0.00 | L40: 1600 | P40: 0
A41: =SUM(A8:A40) -> 0.00 | B41: =SUM(B8:B40) -> 0.00 | D41: Summen | M41: Unterschrift:
A42: =D6 -> 0.00 | B42: =INDIRECT("D"&COUNT(D8:D40)+7) -> 0.00 | D42: Bestand Anfang / Ende | K42: =MIN(D8:D42) -> 0.00 | M42: geprüft: | N42: =IF(ROUND(A43-B43,2)<>0,"Kassendifferenz !!!","") -> 
A43: =SUM(A41:A42) -> 0.00 | B43: =SUM(B41:B42) -> 0.00 | D43: Kontrollsummen | K43: =MIN('S. 1:S. '!K42) -> 0.00 | M43: gebucht:
A44: =IF(ROUND(A43-B43,2)<>0,"Kassendifferenz !!!","") -> 

Sheet S. 11
A1: =INDIRECT("'S. "&N3-1&"'!A1") -> 0 | L1: =DATE(YEAR(B3),MONTH(B3),1) -> 2020-11-01 | M1: K a s s e n b u c h | P1: =INDIRECT("'S. "&N3-1&"'!B3") -> 2020-10-31 | Q1: 2 | Y1: =RIGHT(CELL("Dateiname",A1),LEN(CELL("Dateiname",A1))-FIND("]",CELL("Dateiname",A1))) -> S. 11 | Z1: =LEFT(Y1,SEARCH(" ",Y1)) -> S. | AA1: =RIGHT(Y1,LEN(Y1)-SEARCH(" ",Y1)) -> 11
A3: Monat: | B3: =DATE(YEAR(P1),MONTH(P1)+Q1,0) -> 2020-11-30 | J3: ="F"&LARGE(IF(F8:F40<>" ",ROW(F8:F40)),1) -> F8 | K3: =YEAR(L3) -> 2020 | L3: =B3 -> 2020-11-30 | M3: =INDIRECT("'S. "&N3-1&"'!M3") -> Konto Nr. 1600 | N3: =IF(ISERROR(P3),1,IF(RIGHT(P3,1)=")",LEFT(RIGHT(P3,7),3)+1,Q3)) -> Seite 11 | P3: =RIGHT(CELL("Dateiname",A1),LEN(CELL("Dateiname",A1))-FIND("]",CELL("Dateiname",A1))) -> S. 11 | Q3: =MID(P3,SEARCH(" ",P3)+1,3)*1 -> 11
K4: =MONTH(L4) -> 11 | L4: =L3 -> 2020-11-30 | N4: =IF(ISERROR(P3),"",IF(AND(RIGHT(P3,2)<>TEXT(N3," #"),RIGHT(P3,2)<>TEXT(N3,"##"),RIGHT(P3,3)<>TEXT(N3,"###")),"Name Tabellenblatt ändern in ' S. "&N3&" ' ","")) -> 
A5: Einnahmen | B5: Ausgaben | C5: Einnahmen | D5: Bestand | E5: Gegen- | F5: Beleg- | G5: Beleg- | H5: USt.- | I5: BU | J5: Gegenkonto | K5: Gegenkonto | L5: Konto | M5: Kontierung | N5: Text | O5: Skonto | P5: Festschreibung
A6: € | B6: € | C6: Ausgaben | D6: =INDIRECT("'S. "&N3-1&"'!B42") -> 0.00 | E6: konto | F6: Nr. | G6: Datum | H6: Satz | J6: ASCII | K6: ASCII
G7: =IF(MONTH(INDIRECT("'S. "&N3-1&"'!B3"))=MONTH(B3),MAX(INDIRECT("'S. "&N3-1&"'!G7:G42")),DAY(L1)) -> 1
C8: =A8-B8 -> 0.00 | D8: =D6+C8 -> 0.00 | F8: =IF(INDIRECT("'S. "&N3-1&"'!A43")=0,1,IF(ROUND(A41+B41,2)=0,INDIRECT("'S. "&N3-1&"'!"&INDIRECT("'S. "&N3-1&"'!J3")),INDIRECT("'S. "&N3-1&"'!"&INDIRECT("'S. "&N3-1&"'!J3"))+1)) -> 1 | L8: =$M$3 -> 1600 | P8: 0
C9: =A9-B9 -> 0.00 | D9: =IF(ROUND(C9,2)=0,"",D8+C9) ->  | F9: =IF(A9+B9=0," ",F8+1) ->  | L9: 1600 | P9: 0
C10: 0.00 | D10: =IF(ROUND(C10,2)=0,"",D9+C10) ->  | L10: 1600 | P10: 0
C11: 0.00 | L11: 1600 | P11: 0
C12: 0.00 | L12: 1600 | P12: 0
C13: 0.00 | L13: 1600 | P13: 0
C14: 0.00 | L14: 1600 | P14: 0
C15: 0.00 | L15: 1600 | P15: 0
C16: 0.00 | L16: 1600 | P16: 0
C17: 0.00 | L17: 1600 | P17: 0
C18: 0.00 | L18: 1600 | P18: 0
C19: 0.00 | L19: 1600 | P19: 0
C20: 0.00 | L20: 1600 | P20: 0
C21: 0.00 | L21: 1600 | P21: 0
C22: 0.00 | L22: 1600 | P22: 0
C23: 0.00 | L23: 1600 | P23: 0
C24: 0.00 | L24: 1600 | P24: 0
C25: 0.00 | L25: 1600 | P25: 0
C26: 0.00 | L26: 1600 | P26: 0
C27: 0.00 | L27: 1600 | P27: 0
C28: 0.00 | L28: 1600 | P28: 0
C29: 0.00 | L29: 1600 | P29: 0
C30: 0.00 | L30: 1600 | P30: 0
C31: 0.00 | L31: 1600 | P31: 0
C32: 0.00 | L32: 1600 | P32: 0
C33: 0.00 | L33: 1600 | P33: 0
C34: 0.00 | L34: 1600 | P34: 0
C35: 0.00 | L35: 1600 | P35: 0
C36: 0.00 | L36: 1600 | P36: 0
C37: 0.00 | L37: 1600 | P37: 0
C38: 0.00 | L38: 1600 | P38: 0
C39: 0.00 | L39: 1600 | P39: 0
C40: 0.00 | L40: 1600 | P40: 0
A41: =SUM(A8:A40) -> 0.00 | B41: =SUM(B8:B40) -> 0.00 | D41: Summen | M41: Unterschrift:
A42: =D6 -> 0.00 | B42: =INDIRECT("D"&COUNT(D8:D40)+7) -> 0.00 | D42: Bestand Anfang / Ende | K42: =MIN(D8:D42) -> 0.00 | M42: geprüft: | N42: =IF(ROUND(A43-B43,2)<>0,"Kassendifferenz !!!","") -> 
A43: =SUM(A41:A42) -> 0.00 | B43: =SUM(B41:B42) -> 0.00 | D43: Kontrollsummen | K43: =MIN('S. 1:S. '!K42) -> 0.00 | M43: gebucht:
A44: =IF(ROUND(A43-B43,2)<>0,"Kassendifferenz !!!","") -> 

Sheet S. 12
A1: =INDIRECT("'S. "&N3-1&"'!A1") -> 0 | L1: =DATE(YEAR(B3),MONTH(B3),1) -> 2020-12-01 | M1: K a s s e n b u c h | P1: =INDIRECT("'S. "&N3-1&"'!B3") -> 2020-11-30 | Q1: 2 | Y1: =RIGHT(CELL("Dateiname",A1),LEN(CELL("Dateiname",A1))-FIND("]",CELL("Dateiname",A1))) -> S. 12 | Z1: =LEFT(Y1,SEARCH(" ",Y1)) -> S. | AA1: =RIGHT(Y1,LEN(Y1)-SEARCH(" ",Y1)) -> 12
A3: Monat: | B3: =DATE(YEAR(P1),MONTH(P1)+Q1,0) -> 2020-12-31 | J3: ="F"&LARGE(IF(F8:F40<>" ",ROW(F8:F40)),1) -> F8 | K3: =YEAR(L3) -> 2020 | L3: =B3 -> 2020-12-31 | M3: =INDIRECT("'S. "&N3-1&"'!M3") -> Konto Nr. 1600 | N3: =IF(ISERROR(P3),1,IF(RIGHT(P3,1)=")",LEFT(RIGHT(P3,7),3)+1,Q3)) -> Seite 12 | P3: =RIGHT(CELL("Dateiname",A1),LEN(CELL("Dateiname",A1))-FIND("]",CELL("Dateiname",A1))) -> S. 12 | Q3: =MID(P3,SEARCH(" ",P3)+1,3)*1 -> 12
K4: =MONTH(L4) -> 12 | L4: =L3 -> 2020-12-31 | N4: =IF(ISERROR(P3),"",IF(AND(RIGHT(P3,2)<>TEXT(N3," #"),RIGHT(P3,2)<>TEXT(N3,"##"),RIGHT(P3,3)<>TEXT(N3,"###")),"Name Tabellenblatt ändern in ' S. "&N3&" ' ","")) -> 
A5: Einnahmen | B5: Ausgaben | C5: Einnahmen | D5: Bestand | E5: Gegen- | F5: Beleg- | G5: Beleg- | H5: USt.- | I5: BU | J5: Gegenkonto | K5: Gegenkonto | L5: Konto | M5: Kontierung | N5: Text | O5: Skonto | P5: Festschreibung
A6: € | B6: € | C6: Ausgaben | D6: =INDIRECT("'S. "&N3-1&"'!B42") -> 0.00 | E6: konto | F6: Nr. | G6: Datum | H6: Satz | J6: ASCII | K6: ASCII
G7: =IF(MONTH(INDIRECT("'S. "&N3-1&"'!B3"))=MONTH(B3),MAX(INDIRECT("'S. "&N3-1&"'!G7:G42")),DAY(L1)) -> 1
C8: =A8-B8 -> 0.00 | D8: =D6+C8 -> 0.00 | F8: =IF(INDIRECT("'S. "&N3-1&"'!A43")=0,1,IF(ROUND(A41+B41,2)=0,INDIRECT("'S. "&N3-1&"'!"&INDIRECT("'S. "&N3-1&"'!J3")),INDIRECT("'S. "&N3-1&"'!"&INDIRECT("'S. "&N3-1&"'!J3"))+1)) -> 1 | L8: =$M$3 -> 1600 | P8: 0
C9: =A9-B9 -> 0.00 | D9: =IF(ROUND(C9,2)=0,"",D8+C9) ->  | F9: =IF(A9+B9=0," ",F8+1) ->  | L9: 1600 | P9: 0
C10: 0.00 | D10: =IF(ROUND(C10,2)=0,"",D9+C10) ->  | L10: 1600 | P10: 0
C11: 0.00 | L11: 1600 | P11: 0
C12: 0.00 | L12: 1600 | P12: 0
C13: 0.00 | L13: 1600 | P13: 0
C14: 0.00 | L14: 1600 | P14: 0
C15: 0.00 | L15: 1600 | P15: 0
C16: 0.00 | L16: 1600 | P16: 0
C17: 0.00 | L17: 1600 | P17: 0
C18: 0.00 | L18: 1600 | P18: 0
C19: 0.00 | L19: 1600 | P19: 0
C20: 0.00 | L20: 1600 | P20: 0
C21: 0.00 | L21: 1600 | P21: 0
C22: 0.00 | L22: 1600 | P22: 0
C23: 0.00 | L23: 1600 | P23: 0
C24: 0.00 | L24: 1600 | P24: 0
C25: 0.00 | L25: 1600 | P25: 0
C26: 0.00 | L26: 1600 | P26: 0
C27: 0.00 | L27: 1600 | P27: 0
C28: 0.00 | L28: 1600 | P28: 0
C29: 0.00 | L29: 1600 | P29: 0
C30: 0.00 | L30: 1600 | P30: 0
C31: 0.00 | L31: 1600 | P31: 0
C32: 0.00 | L32: 1600 | P32: 0
C33: 0.00 | L33: 1600 | P33: 0
C34: 0.00 | L34: 1600 | P34: 0
C35: 0.00 | L35: 1600 | P35: 0
C36: 0.00 | L36: 1600 | P36: 0
C37: 0.00 | L37: 1600 | P37: 0
C38: 0.00 | L38: 1600 | P38: 0
C39: 0.00 | L39: 1600 | P39: 0
C40: 0.00 | L40: 1600 | P40: 0
A41: =SUM(A8:A40) -> 0.00 | B41: =SUM(B8:B40) -> 0.00 | D41: Summen | M41: Unterschrift:
A42: =D6 -> 0.00 | B42: =INDIRECT("D"&COUNT(D8:D40)+7) -> 0.00 | D42: Bestand Anfang / Ende | K42: =MIN(D8:D42) -> 0.00 | M42: geprüft: | N42: =IF(ROUND(A43-B43,2)<>0,"Kassendifferenz !!!","") -> 
A43: =SUM(A41:A42) -> 0.00 | B43: =SUM(B41:B42) -> 0.00 | D43: Kontrollsummen | K43: =MIN('S. 1:S. '!K42) -> 0.00 | M43: gebucht:
A44: =IF(ROUND(A43-B43,2)<>0,"Kassendifferenz !!!","") -> 

Sheet S. (hidden)
A1: =INDIRECT("'S. "&N3-1&"'!A1") -> 0 | L1: =DATE(YEAR(B3),MONTH(B3),1) -> 2021-01-01 | M1: K a s s e n b u c h | P1: =INDIRECT("'S. "&N3-1&"'!B3") -> 2020-12-31 | Q1: 2 | Y1: =RIGHT(CELL("Dateiname",A1),LEN(CELL("Dateiname",A1))-FIND("]",CELL("Dateiname",A1))) -> S. | Z1: =LEFT(Y1,SEARCH(" ",Y1)) -> S. | AA1: =RIGHT(Y1,LEN(Y1)-SEARCH(" ",Y1)) -> 
A3: Monat: | B3: =DATE(YEAR(P1),MONTH(P1)+Q1,0) -> 2021-01-31 | J3: ="F"&LARGE(IF(F8:F40<>" ",ROW(F8:F40)),1) -> F8 | K3: =YEAR(L3) -> 2021 | L3: =B3 -> 2021-01-31 | M3: =INDIRECT("'S. "&N3-1&"'!M3") -> Konto Nr. 1600 | N3: =IF(ISERROR(P3),1,IF(RIGHT(P3,1)=")",LEFT(RIGHT(P3,7),3)+1,Q3)) -> Seite 13 | P3: =RIGHT(CELL("Dateiname",A1),LEN(CELL("Dateiname",A1))-FIND("]",CELL("Dateiname",A1))) -> S. | Q3: =IF(ISERROR(MID(P3,SEARCH(" ",P3)+1,3)*1),Q4,MID(P3,SEARCH(" ",P3)+1,3)*1) -> 13
K4: =MONTH(L4) -> 1 | L4: =L3 -> 2021-01-31 | N4: =IF(ISERROR(P3),"",IF(AND(RIGHT(P3,2)<>TEXT(N3," #"),RIGHT(P3,2)<>TEXT(N3,"##"),RIGHT(P3,3)<>TEXT(N3,"###")),"Name Tabellenblatt ändern in ' S. "&N3&" ' ","")) -> Name Tabellenblatt ändern in ' S. 13 ' | Q4: 13
A5: Einnahmen | B5: Ausgaben | C5: Einnahmen | D5: Bestand | E5: Gegen- | F5: Beleg- | G5: Beleg- | H5: USt.- | I5: BU | J5: Gegenkonto | K5: Gegenkonto | L5: Konto | M5: Kontierung | N5: Text | O5: Skonto | P5: Festschreibung
A6: € | B6: € | C6: Ausgaben | D6: =INDIRECT("'S. "&N3-1&"'!B42") -> 0.00 | E6: konto | F6: Nr. | G6: Datum | H6: Satz | J6: ASCII | K6: ASCII
G7: =IF(MONTH(INDIRECT("'S. "&N3-1&"'!B3"))=MONTH(B3),MAX(INDIRECT("'S. "&N3-1&"'!G7:G42")),DAY(L1)) -> 1
C8: =A8-B8 -> 0.00 | D8: =D6+C8 -> 0.00 | F8: =IF(INDIRECT("'S. "&N3-1&"'!A43")=0,1,IF(ROUND(A41+B41,2)=0,INDIRECT("'S. "&N3-1&"'!"&INDIRECT("'S. "&N3-1&"'!J3")),INDIRECT("'S. "&N3-1&"'!"&INDIRECT("'S. "&N3-1&"'!J3"))+1)) -> 1 | L8: =$M$3 -> 1600 | P8: 0
C9: =A9-B9 -> 0.00 | D9: =IF(ROUND(C9,2)=0,"",D8+C9) ->  | F9: =IF(A9+B9=0," ",F8+1) ->  | L9: 1600 | P9: 0
C10: 0.00 | D10: =IF(ROUND(C10,2)=0,"",D9+C10) ->  | L10: 1600 | P10: 0
C11: 0.00 | L11: 1600 | P11: 0
C12: 0.00 | L12: 1600 | P12: 0
C13: 0.00 | L13: 1600 | P13: 0
C14: 0.00 | L14: 1600 | P14: 0
C15: 0.00 | L15: 1600 | P15: 0
C16: 0.00 | L16: 1600 | P16: 0
C17: 0.00 | L17: 1600 | P17: 0
C18: 0.00 | L18: 1600 | P18: 0
C19: 0.00 | L19: 1600 | P19: 0
C20: 0.00 | L20: 1600 | P20: 0
C21: 0.00 | L21: 1600 | P21: 0
C22: 0.00 | L22: 1600 | P22: 0
C23: 0.00 | L23: 1600 | P23: 0
C24: 0.00 | L24: 1600 | P24: 0
C25: 0.00 | L25: 1600 | P25: 0
C26: 0.00 | L26: 1600 | P26: 0
C27: 0.00 | L27: 1600 | P27: 0
C28: 0.00 | L28: 1600 | P28: 0
C29: 0.00 | L29: 1600 | P29: 0
C30: 0.00 | L30: 1600 | P30: 0
C31: 0.00 | L31: 1600 | P31: 0
C32: 0.00 | L32: 1600 | P32: 0
C33: 0.00 | L33: 1600 | P33: 0
C34: 0.00 | L34: 1600 | P34: 0
C35: 0.00 | L35: 1600 | P35: 0
C36: 0.00 | L36: 1600 | P36: 0
C37: 0.00 | L37: 1600 | P37: 0
C38: 0.00 | L38: 1600 | P38: 0
C39: 0.00 | L39: 1600 | P39: 0
C40: 0.00 | L40: 1600 | P40: 0
A41: =SUM(A8:A40) -> 0.00 | B41: =SUM(B8:B40) -> 0.00 | D41: Summen | M41: Unterschrift:
A42: =D6 -> 0.00 | B42: =INDIRECT("D"&COUNT(D8:D40)+7) -> 0.00 | D42: Bestand Anfang / Ende | K42: =MIN(D8:D42) -> 0.00 | M42: geprüft: | N42: =IF(ROUND(A43-B43,2)<>0,"Kassendifferenz !!!","") -> 
A43: =SUM(A41:A42) -> 0.00 | B43: =SUM(B41:B42) -> 0.00 | D43: Kontrollsummen | K43: =INDIRECT("'S. "&N3-1&"'!K43") -> 0.00 | M43: gebucht:
A44: =IF(ROUND(A43-B43,2)<>0,"Kassendifferenz !!!","") -> 

Sheet Konten
A1: Kontenplan SKR 04
A2: " Stichwort " | B2: Konto
B3: =IF(YEAR('S. 1'!B3)<2007,16,19) -> 19% | C3: =IF(YEAR('S. 1'!B3)<2007,15,16) -> 16% | D3: 7% | E3: 0%
A4: Abfallbeseitigung | B4: 90 6859 | C4: =B4-200000 -> 70 6859 | D4: USt. ? | E4: =B4-800000 -> 10 6859
A5: Aufmerksamkeiten | B5: 90 6643 | C5: =B5-200000 -> 70 6643 | D5: =B5-100000 -> 80 6643 | E5: =B5-800000 -> 10 6643
A6: Ausgangsfracht | B6: 90 6740 | C6: =B6-200000 -> 70 6740 | D6: USt. ? | E6: 10 6740
A7: Auszahlung Aushilfen | B7: USt. ? | C7: USt. ? | D7: USt. ? | E7: 3720
A8: Auszahlung Gehalt | B8: USt. ? | C8: USt. ? | D8: USt. ? | E8: 3720
A9: Auszahlung Lohn | B9: USt. ? | C9: USt. ? | D9: USt. ? | E9: 3720
A10: Bankeinzahlung | B10: USt. ? | C10: USt. ? | D10: USt. ? | E10: 1460
A11: Bargeld für Kasse | B11: USt. ? | C11: USt. ? | D11: USt. ? | E11: 1460
A12: Barverkauf | B12: 4400 | C12: =IF(C$3=15,504200,4340) -> 4340 | D12: 4300 | E12: 4120
A13: Barverkauf EG | B13: USt. ? | C13: USt. ? | D13: USt. ? | E13: 4125
A14: Benzin | B14: 90 6530 | C14: =B14-200000 -> 70 6530 | D14: USt. ? | E14: 10 6530
A15: Betriebsbedarf | B15: 90 6850 | C15: =B15-200000 -> 70 6850 | D15: =B15-100000 -> 80 6850 | E15: 10 6850
A16: Bewirtungskosten | B16: 90 6640 | C16: =B16-200000 -> 70 6640 | D16: =B16-100000 -> 80 6640 | E16: 10 6640
A17: Bewirtung in Geschäftsräumen | B17: 90 6641 | C17: =B17-200000 -> 70 6641 | D17: =B17-100000 -> 80 6641 | E17: =B17-800000 -> 10 6641
A18: Bezugsnebenkosten | B18: 90 5800 | C18: 70 5800 | D18: =B18-100000 -> 80 5800 | E18: 10 5800
A19: Bufü-Gebühren | B19: 90 6830 | C19: 70 6830 | D19: USt. ? | E19: 10 6830
A20: Bürobedarf | B20: 90 6815 | C20: 70 6815 | D20: USt. ? | E20: 10 6815
A21: Büromaterial | B21: 90 6815 | C21: 70 6815 | D21: USt. ? | E21: 10 6815
A22: Diesel | B22: 90 6530 | C22: 70 6530 | D22: USt. ? | E22: 10 6530
A23: Erlöse | B23: 4400 | C23: =IF(C$3=15,504200,4340) -> 4340 | D23: 4300 | E23: 4120
A24: Erlöse Abfallverw. | B24: 30 4510 | C24: 50 4510 | D24: USt. ? | E24: 10 4510
A25: Erlöse EG | B25: USt. ? | C25: USt. ? | D25: USt. ? | E25: 4125
A26: Fachliteratur | B26: 90 6820 | C26: 70 6820 | D26: =B26-100000 -> 80 6820 | E26: 10 6820
A27: Fahrtk.Wohng./Betrieb | B27: USt. ? | C27: USt. ? | D27: USt. ? | E27: 6090
A28: Fortbildungskosten | B28: 90 6821 | C28: 70 6821 | D28: =B28-100000 -> 80 6821 | E28: =B28-800000 -> 10 6821
A29: Freiwillige Sozialleistungen | B29: 90 6822 | C29: 70 6822 | D29: =B29-100000 -> 80 6822 | E29: =B29-800000 -> 10 6822
A30: Fremdarbeiten | B30: 90 6780 | C30: 70 6780 | D30: =B30-100000 -> 80 6780 | E30: 10 6780
A31: Garagenmiete | B31: 90 6550 | C31: 70 6550 | D31: USt. ? | E31: 10 6550
A32: Gas | B32: 90 6325 | C32: 70 6325 | D32: USt. ? | E32: 10 6325
A33: Gebühren, sonst.Abgaben | B33: 90 6430 | C33: 70 6430 | D33: USt. ? | E33: 10 6430
A34: Geldtransit | B34: USt. ? | C34: USt. ? | D34: USt. ? | E34: 1460
A35: Geschenk bis 35,- € | B35: 90 6610 | C35: 70 6610 | D35: =B35-100000 -> 80 6610 | E35: 10 6610
A36: Geschenk über 35,- € | B36: 90 6620 | C36: 70 6620 | D36: =B36-100000 -> 80 6620 | E36: 10 6620
A37: GWG bis 800 € | B37: 90 0670 | C37: 70 0670 | D37: =B37-100000 -> 80 0670 | E37: 10 0670
A38: GWG (Sammelpsten) | B38: 90 0675 | C38: 70 0675 | D38: =B38-100000 -> 80 0675 | E38: 10 0675
A39: Heizkosten | B39: 90 6320 | C39: 70 6320 | D39: USt. ? | E39: 10 6320
A40: Instandh.Betriebsräume | B40: 90 6335 | C40: 70 6335 | D40: USt. ? | E40: 10 6335
A41: Instandh.BGA | B41: 90 6470 | C41: 70 6470 | D41: USt. ? | E41: 10 6470
A42: Instandh.Maschinen | B42: 90 6460 | C42: 70 6460 | D42: USt. ? | E42: 10 6460
A43: Kfz-Reparaturen | B43: 90 6540 | C43: 70 6540 | D43: USt. ? | E43: 10 6540
A44: Kfz-Versicherungen | B44: USt. ? | C44: USt. ? | D44: USt. ? | E44: 6520
A45: Kleingeräte | B45: 90 6845 | C45: 70 6845 | D45: =B45-100000 -> 80 6845 | E45: 10 6845
A46: km-Geld Arbeitnehmer | B46: USt. ? | C46: USt. ? | D46: USt. ? | E46: 6668
A47: km-Geld Unternehmer | B47: USt. ? | C47: USt. ? | D47: USt. ? | E47: 6688
A48: lfd.Kfz-Kosten | B48: 90 6530 | C48: =B48-200000 -> 70 6530 | D48: USt. ? | E48: 10 6530
A49: Miete | B49: 90 6310 | C49: 70 6310 | D49: =B49-100000 -> 80 6310 | E49: 10 6310
A50: Pacht | B50: 90 6315 | C50: 70 6315 | D50: =B50-100000 -> 80 6315 | E50: 10 6315
A51: Parkgebühren Arbeitn. | B51: 90 6650 | C51: 70 6650 | D51: =B51-100000 -> 80 6650 | E51: =B51-800000 -> 10 6650
A52: Parkgebühren Untern. | B52: 90 6670 | C52: 70 6670 | D52: =B52-100000 -> 80 6670 | E52: =B52-800000 -> 10 6670
A53: Porto | B53: 90 6800 | C53: 70 6800 | D53: USt. ? | E53: 10 6800
A54: Privateinlage | B54: USt. ? | C54: USt. ? | D54: USt. ? | E54: 2180
A55: Privatentnahme | B55: USt. ? | C55: USt. ? | D55: USt. ? | E55: 2100
A56: Provisionserlöse | B56: 30 4500 | C56: 50 4500 | D56: =B56-100000 -> 20 4500 | E56: 10 4500
A57: Putzmittel | B57: 90 6330 | C57: =B57-200000 -> 70 6330 | D57: 80 6330 | E57: 10 6330
A58: Reinigung | B58: 90 6330 | C58: 70 6330 | D58: 80 6330 | E58: 10 6330
A59: Reinigungsmittel | B59: 90 6330 | C59: 70 6330 | D59: 80 6330 | E59: 10 6330
A60: Reisekosten Arbeitn. | B60: 90 6650 | C60: 70 6650 | D60: 80 6650 | E60: 10 6650
A61: Reisekosten Untern. | B61: 90 6670 | C61: 70 6670 | D61: 80 6670 | E61: 10 6670
A62: sonst.Betriebsbedarf | B62: 90 6850 | C62: 70 6850 | D62: 80 6850 | E62: 10 6850
A63: sonst.Instandhaltungsk. | B63: 90 6490 | C63: 70 6490 | D63: USt. ? | E63: 10 6490
A64: sonst.Kfz.-Kosten | B64: 90 6570 | C64: 70 6570 | D64: USt. ? | E64: 10 6570
A65: Strom | B65: 90 6325 | C65: 70 6325 | D65: USt. ? | E65: 10 6325
A66: Tageseinnahme | B66: 4400 | C66: =IF(C$3=15,504200,4340) -> 4340 | D66: 4300 | E66: USt. ?
A67: Telefax | B67: 90 6810 | C67: 70 6810 | D67: USt. ? | E67: 10 6810
A68: Telefon | B68: 90 6805 | C68: 70 6805 | D68: USt. ? | E68: 10 6805
A69: Trinkgeld | B69: USt. ? | C69: USt. ? | D69: USt. ? | E69: 10 6781
A70: Übernacht.Arbeitn. | B70: 90 6660 | C70: 70 6660 | D70: USt. ? | E70: =B70-800000 -> 10 6660
A71: Übernacht.Untern. | B71: 90 6680 | C71: 70 6680 | D71: USt. ? | E71: 10 6680
A72: Verk. Anlagevermögen | B72: 4845 | C72: 4846 | D72: USt. ? | E72: 10 4849
A73: Verkaufsprovision | B73: 90 6770 | C73: 70 6770 | D73: USt. ? | E73: 10 6770
A74: Verpackungsmaterial | B74: 90 6710 | C74: 70 6710 | D74: USt. ? | E74: 10 6710
A75: Verpfl.mehraufw.Arbeitn. | B75: 90 6664 | C75: 70 6664 | D75: =B75-100000 -> 80 6664 | E75: 10 6664
A76: Verpfl.mehraufw.Untern. | B76: 90 6674 | C76: 70 6674 | D76: =B76-100000 -> 80 6674 | E76: =B76-800000 -> 10 6674
A77: Wartung Hard-/Softw. | B77: 90 6495 | C77: 70 6495 | D77: USt. ? | E77: 10 6495
A78: Wareneingang | B78: 5400 | C78: =IF(C$3=15,705200,5340) -> 5340 | D78: 5300 | E78: 5200
A79: Wareneingang EG | B79: 5425 | C79: 5433 | D79: 5420 | E79: USt. ?
A80: Werbekosten | B80: 90 6600 | C80: =B80-200000 -> 70 6600 | D80: =B80-100000 -> 80 6600 | E80: =B80-800000 -> 10 6600
A81: Werkzeuge bis 60 € | B81: 90 6845 | C81: =B81-200000 -> 70 6845 | D81: USt. ? | E81: =B81-800000 -> 10 6845
A82: Werkzeuge bis 800 € | B82: 90 0670 | C82: =B82-200000 -> 70 0670 | D82: =B82-100000 -> 80 0670 | E82: =B82-800000 -> 10 0670
A83: Werkzeuge über 800 € | B83: 90 0690 | C83: =B83-200000 -> 70 0690 | D83: =B83-100000 -> 80 0690 | E83: =B83-800000 -> 10 0690
A84: Zeitschriften | B84: 90 6820 | C84: =B84-200000 -> 70 6820 | D84: =B84-100000 -> 80 6820 | E84: 10 6820
A86: diverse Kunden
A87: Anzahlung von Kunde | B87: =IF(B3=16,3270,3272) -> 3272 | C87: =IF(C3=15,3271,3270) -> 3270 | D87: 3260 | E87: 3250
A89: Anton GmbH | B89: 1 0102 | C89: =B89+500000 -> 51 0102 | D89: =B89+200000 -> 21 0102 | E89: =B89+100000 -> 11 0102
A90: Berta GmbH | B90: 1 0202 | C90: =B90+500000 -> 51 0202 | D90: =B90+200000 -> 21 0202 | E90: =B90+100000 -> 11 0202
A91: Cäsar GmbH | B91: 1 0302 | C91: =B91+500000 -> 51 0302 | D91: =B91+200000 -> 21 0302 | E91: =B91+100000 -> 11 0302
A92: Dora AG | B92: 1 0402 | C92: =B92+500000 -> 51 0402 | D92: =B92+200000 -> 21 0402 | E92: =B92+100000 -> 11 0402
A95: diverse Lieferanten
A96: Anzahlung an Lieferant | B96: =IF(B3=16,1184,1186) -> 1186 | C96: =IF(C3=15,1185,1184) -> 1184 | D96: 1181 | E96: 1180
A98: Alpha AG | B98: 7 0102 | C98: =B98+700000 -> 77 0102 | D98: =B98+800000 -> 87 0102 | E98: =B98+100000 -> 17 0102

Sheet Kunden
A1: Debitorenliste
A2: diverse Kunden | B2: Konto
B3: =IF(YEAR('S. 1'!B3)<2007,16,19) -> 19% | C3: =IF(YEAR('S. 1'!B3)<2007,15,16) -> 16% | D3: 7% | E3: 0%
B4: Name? | C4: Name? | D4: Name? | E4: Name?
A5: A | B5: 1 0101 | C5: =B5+500000 -> 51 0101 | D5: =B5+200000 -> 21 0101 | E5: =B5+100000 -> 11 0101
A6: B | B6: 1 0201 | C6: =B6+500000 -> 51 0201 | D6: =B6+200000 -> 21 0201 | E6: =B6+100000 -> 11 0201
A7: C | B7: 1 0301 | C7: 51 0301 | D7: 21 0301 | E7: 11 0301
A8: D | B8: 1 0401 | C8: 51 0401 | D8: 21 0401 | E8: 11 0401
A9: E | B9: 1 0501 | C9: 51 0501 | D9: 21 0501 | E9: 11 0501
A10: F | B10: 1 0601 | C10: 51 0601 | D10: 21 0601 | E10: 11 0601
A11: G | B11: 1 0701 | C11: 51 0701 | D11: 21 0701 | E11: 11 0701
A12: H | B12: 1 0801 | C12: 51 0801 | D12: 21 0801 | E12: 11 0801
A13: I | B13: 1 0901 | C13: 51 0901 | D13: 21 0901 | E13: 11 0901
A14: K | B14: 1 1001 | C14: 51 1001 | D14: 21 1001 | E14: 11 1001
A15: L | B15: 1 1101 | C15: 51 1101 | D15: 21 1101 | E15: 11 1101
A16: M | B16: 1 1201 | C16: 51 1201 | D16: 21 1201 | E16: 11 1201
A17: N | B17: 1 1301 | C17: 51 1301 | D17: 21 1301 | E17: 11 1301
A18: O | B18: 1 1401 | C18: 51 1401 | D18: 21 1401 | E18: 11 1401
A19: P | B19: 1 1501 | C19: 51 1501 | D19: 21 1501 | E19: 11 1501
A20: R | B20: 1 1601 | C20: 51 1601 | D20: 21 1601 | E20: 11 1601
A21: S | B21: 1 1701 | C21: 51 1701 | D21: 21 1701 | E21: 11 1701
A22: Sch | B22: 1 1801 | C22: 51 1801 | D22: 21 1801 | E22: 11 1801
A23: Sci | B23: 1 1701 | C23: 51 1701 | D23: 21 1701 | E23: 11 1701
A24: St | B24: 1 1901 | C24: 51 1901 | D24: 21 1901 | E24: 11 1901
A25: Su | B25: 1 1701 | C25: 51 1701 | D25: 21 1701 | E25: 11 1701
A26: T | B26: 1 2001 | C26: 51 2001 | D26: 21 2001 | E26: 11 2001
A27: U | B27: 1 2101 | C27: 51 2101 | D27: 21 2101 | E27: 11 2101
A28: V | B28: 1 2201 | C28: 51 2201 | D28: 21 2201 | E28: 11 2201
A29: W | B29: 1 2301 | C29: 51 2301 | D29: 21 2301 | E29: 11 2301
A30: X | B30: 1 2401 | C30: 51 2401 | D30: 21 2401 | E30: 11 2401

Sheet Lief.
A1: Kreditorenliste
A2: diverse Lieferanten | B2: Konto
B3: =IF(YEAR('S. 1'!B3)<2007,16,19) -> 19% | C3: =IF(YEAR('S. 1'!B3)<2007,15,16) -> 16% | D3: 7% | E3: 0%
B4: Name? | C4: Name? | D4: Name? | E4: Name?
A5: A | B5: 7 0101 | C5: =B5+700000 -> 77 0101 | D5: =B5+800000 -> 87 0101 | E5: =B5+100000 -> 17 0101
A6: B | B6: 7 0201 | C6: =B6+700000 -> 77 0201 | D6: =B6+800000 -> 87 0201 | E6: =B6+100000 -> 17 0201
A7: C | B7: 7 0301 | C7: 77 0301 | D7: 87 0301 | E7: 17 0301
A8: D | B8: 7 0401 | C8: 77 0401 | D8: 87 0401 | E8: 17 0401
A9: E | B9: 7 0501 | C9: 77 0501 | D9: 87 0501 | E9: 17 0501
A10: F | B10: 7 0601 | C10: 77 0601 | D10: 87 0601 | E10: 17 0601
A11: G | B11: 7 0701 | C11: 77 0701 | D11: 87 0701 | E11: 17 0701
A12: H | B12: 7 0801 | C12: 77 0801 | D12: 87 0801 | E12: 17 0801
A13: I | B13: 7 0901 | C13: 77 0901 | D13: 87 0901 | E13: 17 0901
A14: K | B14: 7 1001 | C14: 77 1001 | D14: 87 1001 | E14: 17 1001
A15: L | B15: 7 1101 | C15: 77 1101 | D15: 87 1101 | E15: 17 1101
A16: M | B16: 7 1201 | C16: 77 1201 | D16: 87 1201 | E16: 17 1201
A17: N | B17: 7 1301 | C17: 77 1301 | D17: 87 1301 | E17: 17 1301
A18: O | B18: 7 1401 | C18: 77 1401 | D18: 87 1401 | E18: 17 1401
A19: P | B19: 7 1501 | C19: 77 1501 | D19: 87 1501 | E19: 17 1501
A20: R | B20: 7 1601 | C20: 77 1601 | D20: 87 1601 | E20: 17 1601
A21: S | B21: 7 1701 | C21: 77 1701 | D21: 87 1701 | E21: 17 1701
A22: Sch | B22: 7 1801 | C22: 77 1801 | D22: 87 1801 | E22: 17 1801
A23: Sci | B23: 7 1701 | C23: 77 1701 | D23: 87 1701 | E23: 17 1701
A24: St | B24: 7 1901 | C24: 77 1901 | D24: 87 1901 | E24: 17 1901
A25: Su | B25: 7 1701 | C25: 77 1701 | D25: 87 1701 | E25: 17 1701
A26: T | B26: 7 2001 | C26: 77 2001 | D26: 87 2001 | E26: 17 2001
A27: U | B27: 7 2101 | C27: 77 2101 | D27: 87 2101 | E27: 17 2101
A28: V | B28: 7 2201 | C28: 77 2201 | D28: 87 2201 | E28: 17 2201
A29: W | B29: 7 2301 | C29: 77 2301 | D29: 87 2301 | E29: 17 2301
A30: X | B30: 7 2401 | C30: 77 2401 | D30: 87 2401 | E30: 17 2401
